fUSD/lending_fUSD_20250611
["ID","MTS","AMOUNT","RATE_DAILY","PERIOD"]
[365348035,1749612649852,-460.0,0.00016438,2]
[365348036,1749612649862,-461.55922288,0.00016438,2]
[365348037,1749612649871,-417.4799331,0.00016438,2]
[365348038,1749612649880,-490.0,0.00016438,2]
[365348039,1749612649890,-499.89,0.00016438,2]
[365348040,1749612649899,-474.31,0.00016438,2]
[365348041,1749612649908,-490.0,0.00016438,2]
[365348042,1749612649918,-460.0,0.00016438,2]
[365348043,1749612649927,-490.0,0.00016438,2]
[365348044,1749612649937,-297.31,0.00016438,2]
[365348045,1749612649946,-490.0,0.00016438,2]
[365348046,1749612649957,-513.0143128,0.00016473,2]
[365348047,1749612649966,-666.0,0.00016502,2]
[365348048,1749612649976,-436.81,0.00016602,2]
[365348049,1749612649986,-181.23,0.00016602,2]
[365348050,1749612649997,-429.54,0.00016602,2]
[365348051,1749612650007,-260.92,0.00016602,2]
[365348052,1749612650016,-364.42,0.00016602,2]
[365348053,1749612650026,-490.0,0.00016602,2]
[365348054,1749612650035,-215.12610369,0.00016602,2]
[365348055,1749612650044,-490.0,0.00016602,2]
[365348056,1749612650054,-382.75,0.00016602,2]
[365348057,1749612650064,-305.45,0.00016602,2]
[365348058,1749612650073,-490.0,0.00016602,2]
[365348059,1749612650083,-478.51,0.00016602,2]
[365348060,1749612650092,-490.0,0.00016602,2]
[365348061,1749612650101,-389.07,0.00016602,2]
[365348062,1749612650111,-427.97,0.00016602,2]
[365348063,1749612650120,-494.78,0.00016602,2]
[365348064,1749612650177,-490.0,0.00016602,2]
[365348065,1749612650186,-462.93793836,0.00016602,2]
[365348066,1749612650196,-491.05260236,0.00016602,2]
[365348067,1749612650205,-354.76,0.00016602,2]
[365348068,1749612650215,-490.0,0.00016602,2]
[365348069,1749612650224,-184.00625369,0.00016602,2]
[365348070,1749612650233,-423.85229271,0.00016602,2]
[365348071,1749612650243,-455.35,0.00016602,2]
[365348072,1749612650251,-276.51,0.00016602,2]
[365348073,1749612650261,-600.84,0.00016602,2]
[365348074,1749612650274,-391.16,0.00016602,2]
[365348075,1749612650283,-372.99554899,0.00016602,2]
[365348076,1749612650292,-490.0,0.00016602,2]
[365348077,1749612650301,-490.0,0.00016602,2]
[365348078,1749612650311,-490.0,0.00016602,2]
[365348079,1749612650320,-490.0,0.00016602,2]
[365348080,1749612650329,-331.7,0.00016602,2]
[365348081,1749612650340,-489.68447375,0.00016602,2]
[365348082,1749612650349,-538.24,0.00016602,2]
[365348083,1749612650359,-214.5018656,0.00016602,2]
[365348084,1749612650368,-328.56,0.00016602,2]
[365348085,1749612650377,-289.66,0.00016602,2]
[365348086,1749612650388,-490.0,0.00016602,2]
[365348087,1749612650397,-397.73,0.00016602,2]
[365348088,1749612650407,-213.41,0.00016602,2]
[365348089,1749612650416,-288.49482876,0.00016602,2]
[365348090,1749612650426,-166.98,0.00016602,2]
[365348091,1749612650435,-490.0,0.00016602,2]
[365348092,1749612650444,-522.15,0.00016602,2]
[365348093,1749612650453,-490.0,0.00016602,2]
[365348094,1749612650462,-209.88,0.00016602,2]
[365348095,1749612650471,-587.51,0.00016602,2]
[365348096,1749612650481,-564.80445368,0.00016602,2]
[365348097,1749612650490,-490.0,0.00016602,2]
[365348098,1749612650500,-419.05309904,0.00016602,2]
[365348099,1749612650509,-567.00714036,0.00016602,2]
[365348100,1749612650519,-445.67,0.00016602,2]
[365348101,1749612650528,-490.0,0.00016602,2]
[365348102,1749612650537,-206.71,0.00016602,2]
[365348103,1749612650547,-490.0,0.00016602,2]
[365348104,1749612650556,-490.0,0.00016602,2]
[365348105,1749612650565,-490.0,0.00016602,2]
[365348106,1749612650574,-358.46839813,0.00016602,2]
[365348107,1749612650583,-308.92,0.00016602,2]
[365348108,1749612650591,-490.0,0.00016602,2]
[365348109,1749612650601,-601.80026441,0.00016602,2]
[365348110,1749612650610,-579.45237725,0.00016602,2]
[365348111,1749612650620,-490.0,0.00016602,2]
[365348112,1749612650629,-616.89,0.00016602,2]
[365348113,1749612650639,-447.24,0.00016602,2]
[365348114,1749612650648,-394.98138541,0.00016602,2]
[365348115,1749612650657,-444.66762844,0.00016602,2]
[365348116,1749612650666,-337.3693238,0.00016602,2]
[365348117,1749612650675,-490.0,0.00016602,2]
[365348118,1749612650684,-302.35,0.00016602,2]
[365348119,1749612650693,-490.0,0.00016602,2]
[365348120,1749612650703,-490.0,0.00016602,2]
[365348121,1749612650712,-308.54,0.00016602,2]
[365348122,1749612650722,-329.7632745,0.00016602,2]
[365348123,1749612650731,-251.52,0.00016602,2]
[365348124,1749612650740,-163.1,0.00016602,2]
[365348125,1749612650750,-209.38,0.00016602,2]
[365348126,1749612650758,-279.62,0.00016602,2]
[365348127,1749612650767,-361.31,0.00016602,2]
[365348128,1749612650775,-490.0,0.00016602,2]
[365348129,1749612650784,-490.0,0.00016602,2]
[365348130,1749612650792,-155.05,0.00016602,2]
[365348131,1749612650801,-490.0,0.00016602,2]
[365348132,1749612650810,-490.0,0.00016602,2]
[365348133,1749612650820,-345.17,0.00016602,2]
[365348134,1749612650829,-490.0,0.00016602,2]
[365348135,1749612650838,-490.0,0.00016602,2]
[365348136,1749612650847,-620.71,0.00016602,2]
[365348137,1749612650856,-293.41842092,0.00016602,2]
[365348138,1749612650865,-311.89,0.00016602,2]
[365348139,1749612650874,-490.0,0.00016602,2]
[365348140,1749612650883,-288.73,0.00016602,2]
[365348141,1749612650892,-490.0,0.00016602,2]
[365348142,1749612650901,-490.0,0.00016602,2]
[365348143,1749612650910,-474.1444936,0.00016602,2]
[365348144,1749612650919,-490.0,0.00016602,2]
[365348145,1749612650928,-364.95,0.00016602,2]
[365348146,1749612650936,-344.17,0.00016602,2]
[365348147,1749612650946,-490.0,0.00016602,2]
[365348148,1749612650955,-490.0,0.00016602,2]
[365348149,1749612650964,-347.58,0.00016602,2]
[365348150,1749612650972,-496.03,0.00016602,2]
[365348151,1749612650982,-490.0,0.00016602,2]
[365348152,1749612650991,-490.0,0.00016602,2]
[365348153,1749612651001,-348.60905098,0.00016602,2]
[365348154,1749612651010,-541.02,0.00016602,2]
[365348155,1749612651019,-224.11,0.00016602,2]
[365348156,1749612651029,-427.33,0.00016602,2]
[365348157,1749612651038,-418.63,0.00016602,2]
[365348158,1749612651047,-490.0,0.00016602,2]
[365348159,1749612651056,-501.41,0.00016602,2]
[365348160,1749612651066,-402.20360122,0.00016602,2]
[365348161,1749612651075,-490.0,0.00016602,2]
[365348162,1749612651085,-490.0,0.00016602,2]
[365348163,1749612651095,-490.0,0.00016602,2]
[365348164,1749612651105,-490.0,0.00016602,2]
[365348165,1749612651113,-490.0,0.00016602,2]
[365348166,1749612651123,-490.0,0.00016602,2]
[365348167,1749612651131,-490.0,0.00016602,2]
[365348168,1749612651142,-331.08,0.00016602,2]
[365348169,1749612651152,-490.0,0.00016602,2]
[365348170,1749612651161,-323.57686,0.00016602,2]
[365348171,1749612651171,-305.33,0.00016602,2]
[365348172,1749612651181,-397.33,0.00016602,2]
[365348173,1749612651190,-490.0,0.00016602,2]
[365348174,1749612651199,-370.86940857,0.00016602,2]
[365348175,1749612651208,-151.0,0.00016602,2]
[365348176,1749612651217,-490.0,0.00016602,2]
[365348177,1749612651227,-359.96,0.00016602,2]
[365348178,1749612651236,-171.69,0.00016602,2]
[365348179,1749612651246,-215.89,0.00016602,2]
[365348180,1749612651256,-1000.0,0.00016602,2]
[365348181,1749612651267,-151.0,0.00016602,2]
[365348182,1749612651277,-490.0,0.00016602,2]
[365348183,1749612651286,-490.0,0.00016602,2]
[365348184,1749612651295,-844.1,0.00016602,2]
[365348185,1749612651306,-490.0,0.00016602,2]
[365348186,1749612651315,-151.0,0.00016602,2]
[365348187,1749612651325,-1013.83,0.00016602,2]
[365348188,1749612651334,-557.63,0.00016602,2]
[365348189,1749612651346,-490.0,0.00016602,2]
[365348190,1749612651356,-426.93,0.00016602,2]
[365348191,1749612651365,-378.06,0.00016602,2]
[365348192,1749612651375,-644.56,0.00016602,2]
[365348193,1749612651384,-490.0,0.00016602,2]
[365348194,1749612651393,-386.79,0.00016602,2]
[365348195,1749612651403,-308.46,0.00016602,2]
[365348196,1749612651413,-575.72,0.00016602,2]
[365348197,1749612651423,-151.0,0.00016602,2]
[365348198,1749612651432,-490.0,0.00016602,2]
[365348199,1749612651442,-485.88,0.00016602,2]
[365348200,1749612651451,-370.07,0.00016602,2]
[365348201,1749612651471,-490.0,0.00016602,2]
[365348202,1749612651482,-490.0,0.00016602,2]
[365348203,1749612651492,-490.0,0.00016602,2]
[365348204,1749612651503,-151.618635,0.00016602,2]
[365348205,1749612651512,-490.0,0.00016602,2]
[365348206,1749612651522,-490.0,0.00016602,2]
[365348207,1749612651531,-490.0,0.00016602,2]
[365348208,1749612651542,-490.0,0.00016602,2]
[365348209,1749612651551,-363.51193676,0.00016602,2]
[365348210,1749612651561,-490.0,0.00016602,2]
[365348211,1749612651570,-490.0,0.00016602,2]
[365348212,1749612651580,-694.54,0.00016602,2]
[365348213,1749612651590,-490.0,0.00016602,2]
[365348214,1749612651599,-490.0,0.00016602,2]
[365348215,1749612651610,-490.0,0.00016602,2]
[365348216,1749612651619,-490.0,0.00016602,2]
[365348217,1749612651629,-151.0,0.00016602,2]
[365348218,1749612651639,-256.935892,0.00016602,2]
[365348219,1749612651648,-620.06,0.00016602,2]
[365348220,1749612651657,-188.810239,0.00016602,2]
[365348221,1749612651667,-490.0,0.00016602,2]
[365348222,1749612651676,-562.43,0.00016602,2]
[365348223,1749612651686,-490.0,0.00016602,2]
[365348224,1749612651695,-490.0,0.00016602,2]
[365348225,1749612651706,-151.0,0.00016602,2]
[365348226,1749612651715,-490.0,0.00016602,2]
[365348227,1749612651724,-490.0,0.00016602,2]
[365348228,1749612651733,-490.0,0.00016602,2]
[365348229,1749612651743,-490.0,0.00016602,2]
[365348230,1749612651754,-490.0,0.00016602,2]
[365348231,1749612651763,-490.0,0.00016602,2]
[365348232,1749612651774,-1010.45,0.00016602,2]
[365348233,1749612651784,-10604.56,0.00016602,2]
[365348234,1749612651793,-151.0,0.00016602,2]
[365348235,1749612651804,-348.21,0.00016602,2]
[365348236,1749612651814,-490.0,0.00016602,2]
[365348237,1749612651824,-196.38,0.00016602,2]
[365348238,1749612651834,-490.0,0.00016602,2]
[365348239,1749612651843,-151.0,0.00016602,2]
[365348240,1749612651854,-490.0,0.00016602,2]
[365348241,1749612651863,-151.0,0.00016602,2]
[365348242,1749612651873,-490.0,0.00016602,2]
[365348243,1749612651883,-490.0,0.00016602,2]
[365348244,1749612651893,-490.0,0.00016602,2]
[365348245,1749612651902,-301.10562,0.00016602,2]
[365348246,1749612651912,-490.0,0.00016602,2]
[365348247,1749612651922,-497.3819755,0.00016602,2]
[365348248,1749612651932,-490.0,0.00016602,2]
[365348249,1749612651942,-490.0,0.00016602,2]
[365348250,1749612651952,-490.0,0.00016602,2]
[365348251,1749612651964,-151.0,0.00016602,2]
[365348252,1749612651973,-743.34,0.00016602,2]
[365348253,1749612651983,-618.33,0.00016602,2]
[365348254,1749612651993,-490.0,0.00016602,2]
[365348255,1749612652003,-566.53,0.00016602,2]
[365348256,1749612652013,-490.0,0.00016602,2]
[365348257,1749612652023,-490.0,0.00016602,2]
[365348258,1749612652032,-490.0,0.00016602,2]
[365348259,1749612652042,-278.03,0.00016602,2]
[365348260,1749612652052,-487.98,0.00016602,2]
[365348261,1749612652062,-514.35,0.00016602,2]
[365348262,1749612652072,-157.977678,0.00016602,2]
[365348263,1749612652082,-1121.03,0.00016602,2]
[365348264,1749612652091,-601.28,0.00016602,2]
[365348265,1749612652103,-499.89,0.00016602,2]
[365348266,1749612652113,-165.41144147,0.00016602,2]
[365348267,1749612652123,-490.0,0.00016602,2]
[365348268,1749612652133,-428.72,0.00016727,2]
[365348269,1749612652142,-199.75790905,0.00016734,2]
[365348270,1749612652152,-308.2678505,0.00016767,2]
[365348271,1749612652162,-490.0,0.00016767,2]
[365348272,1749612652171,-338.95,0.00016767,2]
[365348273,1749612652181,-236.39,0.00016767,2]
[365348274,1749612652191,-251.36,0.00016767,2]
[365348275,1749612652202,-561.18658702,0.00016767,2]
[365348276,1749612652212,-179.34,0.00016767,2]
[365348277,1749612652222,-189.48,0.00016767,2]
[365348278,1749612652232,-588.83,0.00016767,2]
[365348279,1749612652242,-233.35743541,0.00016767,2]
[365348280,1749612652252,-490.0,0.00016767,2]
[365348281,1749612652262,-167.15934919,0.00016767,2]
[365348282,1749612652275,-359.19,0.00016767,2]
[365348283,1749612652286,-495.45,0.00016767,2]
[365348284,1749612652297,-490.0,0.00016767,2]
[365348285,1749612652307,-508.12,0.00016767,2]
[365348286,1749612652317,-490.0,0.00016767,2]
[365348287,1749612652326,-490.0,0.00016767,2]
[365348288,1749612652337,-164.71,0.00016767,2]
[365348289,1749612652348,-490.0,0.00016767,2]
[365348290,1749612652358,-490.0,0.00016767,2]
[365348291,1749612652367,-245.11,0.00016767,2]
[365348292,1749612652379,-466.36177424,0.00016767,2]
[365348293,1749612652389,-490.0,0.00016767,2]
[365348294,1749612652400,-478.56,0.00016767,2]
[365348295,1749612652410,-490.0,0.00016767,2]
[365348296,1749612652419,-490.0,0.00016767,2]
[365348297,1749612652429,-490.0,0.00016767,2]
[365348298,1749612652440,-490.0,0.00016767,2]
[365348299,1749612652449,-155.05,0.00016767,2]
[365348300,1749612652459,-151.0,0.00016767,2]
[365348301,1749612652469,-490.0,0.00016767,2]
[365348302,1749612652480,-225.41,0.00016767,2]
[365348303,1749612652490,-490.0,0.00016767,2]
[365348304,1749612652500,-490.0,0.00016767,2]
[365348305,1749612652510,-490.0,0.00016767,2]
[365348306,1749612652519,-151.0,0.00016767,2]
[365348307,1749612652529,-151.0,0.00016767,2]
[365348308,1749612652540,-151.0,0.00016767,2]
[365348309,1749612652549,-490.0,0.00016767,2]
[365348310,1749612652559,-151.0,0.00016767,2]
[365348311,1749612652569,-151.626082,0.00016767,2]
[365348312,1749612652579,-490.0,0.00016767,2]
[365348313,1749612652589,-255.65,0.00016767,2]
[365348314,1749612652598,-156.235861,0.00016767,2]
[365348315,1749612652608,-490.0,0.00016767,2]
[365348316,1749612652617,-151.0,0.00016767,2]
[365348317,1749612652627,-185.27,0.00016767,2]
[365348318,1749612652637,-151.82445361,0.00016767,2]
[365348319,1749612652647,-154.919891,0.00016767,2]
[365348320,1749612652657,-151.0,0.00016767,2]
[365348321,1749612652666,-348.84,0.00016767,2]
[365348322,1749612652676,-356.22,0.00016767,2]
[365348323,1749612652685,-151.321803,0.00016767,2]
[365348324,1749612652695,-427.09,0.00016767,2]
[365348325,1749612652705,-151.0,0.00016767,2]
[365348326,1749612652714,-456.38,0.00016767,2]
[365348327,1749612652723,-151.0,0.00016767,2]
[365348328,1749612652733,-526.8,0.00016767,2]
[365348329,1749612652742,-152.302756,0.00016767,2]
[365348330,1749612652752,-490.0,0.00016767,2]
[365348331,1749612652762,-151.0,0.00016767,2]
[365348332,1749612652771,-1489.546845,0.00016767,2]
[365348333,1749612652782,-1489.546845,0.00016767,2]
[365348334,1749612652793,-589.74,0.00016767,2]
[365348335,1749612652803,-151.0,0.00016767,2]
[365348336,1749612652813,-1000.0,0.00016767,2]
[365348337,1749612652823,-490.0,0.00016767,2]
[365348338,1749612652833,-314.43,0.00016767,2]
[365348339,1749612652842,-844.1,0.00016767,2]
[365348340,1749612652852,-490.0,0.00016767,2]
[365348341,1749612652861,-152.548744,0.00016767,2]
[365348342,1749612652871,-1013.83,0.00016767,2]
[365348343,1749612652880,-557.63,0.00016767,2]
[365348344,1749612652889,-490.0,0.00016767,2]
[365348345,1749612652899,-644.56,0.00016767,2]
[365348346,1749612652909,-364.25,0.00016767,2]
[365348347,1749612652918,-575.72,0.00016767,2]
[365348348,1749612652928,-242.052083,0.00016767,2]
[365348349,1749612652938,-490.0,0.00016767,2]
[365348350,1749612652947,-209.94,0.00016767,2]
[365348351,1749612652957,-197.99,0.00016767,2]
[365348352,1749612652967,-490.0,0.00016767,2]
[365348353,1749612652976,-227.83,0.00016767,2]
[365348354,1749612652985,-490.0,0.00016767,2]
[365348355,1749612652995,-490.0,0.00016767,2]
[365348356,1749612653007,-490.0,0.00016767,2]
[365348357,1749612653016,-490.0,0.00016767,2]
[365348358,1749612653026,-490.0,0.00016767,2]
[365348359,1749612653035,-694.54,0.00016767,2]
[365348360,1749612653045,-490.0,0.00016767,2]
[365348361,1749612653054,-490.0,0.00016767,2]
[365348362,1749612653064,-490.0,0.00016767,2]
[365348363,1749612653073,-490.0,0.00016767,2]
[365348364,1749612653083,-151.0,0.00016767,2]
[365348365,1749612653092,-490.0,0.00016767,2]
[365348366,1749612653102,-490.0,0.00016767,2]
[365348367,1749612653112,-490.0,0.00016767,2]
[365348368,1749612653121,-142.71459081,0.00016767,2]
[365348369,1749612653348,-8.28540919,0.00016767,2]
[365348370,1749612653358,-490.0,0.00016767,2]
[365348371,1749612653367,-490.0,0.00016767,2]
[365348372,1749612653377,-490.0,0.00016767,2]
[365348373,1749612653387,-490.0,0.00016767,2]
[365348374,1749612653396,-490.0,0.00016767,2]
[365348375,1749612653406,-570.93,0.00016767,2]
[365348376,1749612653415,-1010.45,0.00016767,2]
[365348377,1749612653425,-10604.56,0.00016767,2]
[365348378,1749612653435,-151.0,0.00016767,2]
[365348379,1749612653444,-490.0,0.00016767,2]
[365348380,1749612653455,-490.0,0.00016767,2]
[365348381,1749612653464,-151.0,0.00016767,2]
[365348382,1749612653474,-490.0,0.00016767,2]
[365348383,1749612653483,-274.943061,0.00016767,2]
[365348384,1749612653492,-490.0,0.00016767,2]
[365348385,1749612653503,-490.0,0.00016767,2]
[365348386,1749612653513,-490.0,0.00016767,2]
[365348387,1749612653524,-490.0,0.00016767,2]
[365348388,1749612653534,-490.0,0.00016767,2]
[365348389,1749612653543,-490.0,0.00016767,2]
[365348390,1749612653554,-490.0,0.00016767,2]
[365348391,1749612653564,-213.05498,0.00016767,2]
[365348392,1749612653573,-743.34,0.00016767,2]
[365348393,1749612653583,-490.0,0.00016767,2]
[365348394,1749612653593,-490.0,0.00016767,2]
[365348395,1749612653604,-490.0,0.00016767,2]
[365348396,1749612653614,-490.0,0.00016767,2]
[365348397,1749612653624,-1121.03,0.00016767,2]
[365348398,1749612653634,-499.89,0.00016767,2]
[365348399,1749612653644,-490.0,0.00016767,2]
[365348400,1749612653653,-436.21978262,0.000169,2]
[365348401,1749612653663,-566.26621699,0.0001693,2]
[365348402,1749612653673,-500.0,0.0001693,2]
[365348403,1749612653684,-500.0,0.0001693,2]
[365348404,1749612653863,-434.53,0.00016931,2]
[365348405,1749612653873,-180.83,0.00016931,2]
[365348406,1749612653882,-490.0,0.00016931,2]
[365348407,1749612653891,-386.05,0.00016931,2]
[365348408,1749612653900,-490.0,0.00016931,2]
[365348409,1749612653909,-151.05,0.00016931,2]
[365348410,1749612653919,-183.21,0.00016931,2]
[365348411,1749612653928,-626.07,0.00016931,2]
[365348412,1749612653938,-490.0,0.00016931,2]
[365348413,1749612653947,-386.03,0.00016931,2]
[365348414,1749612653956,-439.51913626,0.00016931,2]
[365348415,1749612653966,-490.0,0.00016931,2]
[365348416,1749612653976,-490.0,0.00016931,2]
[365348417,1749612653985,-490.0,0.00016931,2]
[365348418,1749612653994,-490.0,0.00016931,2]
[365348419,1749612654005,-490.0,0.00016931,2]
[365348420,1749612654014,-490.0,0.00016931,2]
[365348421,1749612654024,-490.0,0.00016931,2]
[365348422,1749612654033,-490.0,0.00016931,2]
[365348423,1749612654041,-490.0,0.00016931,2]
[365348424,1749612654051,-155.141846,0.00016931,2]
[365348425,1749612654060,-1000.0,0.00016931,2]
[365348426,1749612654069,-255.74993,0.00016931,2]
[365348427,1749612654077,-490.0,0.00016931,2]
[365348428,1749612654087,-844.1,0.00016931,2]
[365348429,1749612654096,-490.0,0.00016931,2]
[365348430,1749612654105,-240.821614,0.00016931,2]
[365348431,1749612654114,-1013.83,0.00016931,2]
[365348432,1749612654123,-557.63,0.00016931,2]
[365348433,1749612654132,-490.0,0.00016931,2]
[365348434,1749612654141,-644.56,0.00016931,2]
[365348435,1749612654150,-575.72,0.00016931,2]
[365348436,1749612654159,-278.78,0.00016931,2]
[365348437,1749612654169,-384.06,0.00016931,2]
[365348438,1749612654178,-490.0,0.00016931,2]
[365348439,1749612654187,-490.0,0.00016931,2]
[365348440,1749612654196,-490.0,0.00016931,2]
[365348441,1749612654205,-490.0,0.00016931,2]
[365348442,1749612654214,-490.0,0.00016931,2]
[365348443,1749612654223,-694.54,0.00016931,2]
[365348444,1749612654232,-490.0,0.00016931,2]
[365348445,1749612654241,-490.0,0.00016931,2]
[365348446,1749612654251,-490.0,0.00016931,2]
[365348447,1749612654260,-490.0,0.00016931,2]
[365348448,1749612654272,-490.0,0.00016931,2]
[365348449,1749612654281,-490.0,0.00016931,2]
[365348450,1749612654290,-490.0,0.00016931,2]
[365348451,1749612654299,-490.0,0.00016931,2]
[365348452,1749612654309,-274.02,0.00016931,2]
[365348453,1749612654319,-589.25,0.00016931,2]
[365348454,1749612654329,-490.0,0.00016931,2]
[365348455,1749612654338,-490.0,0.00016931,2]
[365348456,1749612654349,-1010.45,0.00016931,2]
[365348457,1749612654359,-10604.56,0.00016931,2]
[365348458,1749612654369,-490.0,0.00016931,2]
[365348459,1749612654379,-522.65,0.00016931,2]
[365348460,1749612654388,-490.0,0.00016931,2]
[365348461,1749612654398,-490.0,0.00016931,2]
[365348462,1749612654407,-490.0,0.00016931,2]
[365348463,1749612654417,-490.0,0.00016931,2]
[365348464,1749612654426,-490.0,0.00016931,2]
[365348465,1749612654436,-619.02,0.00016931,2]
[365348466,1749612654445,-490.0,0.00016931,2]
[365348467,1749612654454,-490.0,0.00016931,2]
[365348468,1749612654463,-743.34,0.00016931,2]
[365348469,1749612654473,-292.53,0.00016931,2]
[365348470,1749612654482,-159.12,0.00016931,2]
[365348471,1749612654492,-490.0,0.00016931,2]
[365348472,1749612654502,-490.0,0.00016931,2]
[365348473,1749612654512,-1121.03,0.00016931,2]
[365348474,1749612654521,-499.89,0.00016931,2]
[365348475,1749612654531,-490.0,0.00016931,2]
[365348476,1749612654540,-833.29909032,0.00016999,2]
[365348477,1749612654550,-436.21978261,0.00017003,2]
[365348478,1749612654559,-250.737337,0.00017095,2]
[365348479,1749612654568,-152.282667,0.00017095,2]
[365348480,1749612654578,-151.834327,0.00017095,2]
[365348481,1749612654587,-249.36,0.00017095,2]
[365348482,1749612654596,-490.0,0.00017095,2]
[365348483,1749612654605,-989.835671,0.00017095,2]
[365348484,1749612654615,-989.835671,0.00017095,2]
[365348485,1749612654624,-490.0,0.00017095,2]
[365348486,1749612654633,-490.0,0.00017095,2]
[365348487,1749612654642,-151.0,0.00017095,2]
[365348488,1749612654651,-507.15,0.00017095,2]
[365348489,1749612654661,-490.0,0.00017095,2]
[365348490,1749612654671,-475.67481,0.00017095,2]
[365348491,1749612654680,-475.67481,0.00017095,2]
[365348492,1749612654689,-490.0,0.00017095,2]
[365348493,1749612654699,-162.54,0.00017095,2]
[365348494,1749612654708,-154.231796,0.00017095,2]
[365348495,1749612654717,-189.840227,0.00017095,2]
[365348496,1749612654726,-189.840227,0.00017095,2]
[365348497,1749612654735,-151.0,0.00017095,2]
[365348498,1749612654744,-490.0,0.00017095,2]
[365348499,1749612654754,-152.856751,0.00017095,2]
[365348500,1749612654763,-153.778966,0.00017095,2]
[365348501,1749612654772,-490.0,0.00017095,2]
[365348502,1749612654782,-490.0,0.00017095,2]
[365348503,1749612654791,-151.0,0.00017095,2]
[365348504,1749612654800,-151.0,0.00017095,2]
[365348505,1749612654809,-151.0,0.00017095,2]
[365348506,1749612654818,-151.0,0.00017095,2]
[365348507,1749612654827,-490.0,0.00017095,2]
[365348508,1749612654836,-179.101836,0.00017095,2]
[365348509,1749612654846,-1489.546845,0.00017095,2]
[365348510,1749612654855,-1489.546845,0.00017095,2]
[365348511,1749612654864,-151.0,0.00017095,2]
[365348512,1749612654874,-794.57,0.00017095,2]
[365348513,1749612654883,-490.0,0.00017095,2]
[365348514,1749612654892,-844.1,0.00017095,2]
[365348515,1749612654902,-490.0,0.00017095,2]
[365348516,1749612654911,-1013.83,0.00017095,2]
[365348517,1749612654921,-557.63,0.00017095,2]
[365348518,1749612654930,-490.0,0.00017095,2]
[365348519,1749612654939,-644.56,0.00017095,2]
[365348520,1749612654948,-575.72,0.00017095,2]
[365348521,1749612654957,-490.0,0.00017095,2]
[365348522,1749612654967,-490.0,0.00017095,2]
[365348523,1749612654976,-490.0,0.00017095,2]
[365348524,1749612654986,-490.0,0.00017095,2]
[365348525,1749612654995,-490.0,0.00017095,2]
[365348526,1749612655006,-694.54,0.00017095,2]
[365348527,1749612655015,-490.0,0.00017095,2]
[365348528,1749612655024,-490.0,0.00017095,2]
[365348529,1749612655035,-560.46,0.00017095,2]
[365348530,1749612655045,-490.0,0.00017095,2]
[365348531,1749612655056,-151.0,0.00017095,2]
[365348532,1749612655065,-490.0,0.00017095,2]
[365348533,1749612655075,-490.0,0.00017095,2]
[365348534,1749612655084,-490.0,0.00017095,2]